Cogmind - Beta 10.2 @@@ ROGUE MODE // 2021.08.19 @ 19:00:02 Player: derk Result: Escaped! Performance ------------- Evolutions (9) 4500 Regions Visited (30) 6000 Robots Destroyed (179) 895 Value Destroyed (6921) 6921 Prototype IDs (90) 1800 Alien Tech Used (0) 0 Bonus (9479) 9479 TOTAL SCORE: 29595 Bonus ------- High Alert Combat Kills 1000 Follower Combat Kills 1870 Aligned with FarCom 300 Met Data Miner 300 Met Imprinter 300 Met Warlord at Base 500 MAIN.C Attacked Warlord 500 A7 Reached Mainframe 300 Met Warlord at Research 2000 Win 3000 Friendly Fire -591 Cogmind --------- Core Integrity 1600/1600 Matter 260/300 Energy 250/260 System Corruption 0% Temperature Cool (10) Movement Hovering (52) Location To Epsilon Eridani Parts ------- > --- POWER (2) -------- Micro Fission Core Light Quantum Reactor > --- PROPULSION (5) --- Combat Gravmag System Combat Gravmag System Improved Antigrav System Experimental Gyrokinetic Inverter Combat Linear Gravjet > --- UTILITY (16) ----- Experimental Power Amplifier Advanced Cooling System High-capacity Storage Unit Spectral Analyzer Advanced Signal Interpreter Advanced Targeting Computer Experimental Melee Analysis Suite Advanced Launcher Guidance Computer Advanced Launcher Guidance Computer Medium Insulated Plating Experimental Shock Absorption System Improved Hacking Suite Advanced Hacking Suite Improved System Shield Advanced System Shield Drone Bay (1/2) > --- WEAPON (2) ------- Enhanced Nova Cannon Fusion Bomb Launcher > --- INVENTORY (12) --- Combat Gravmag System Advanced Energy Well (800) Advanced Matter Compressor (400) Peak State ------------ > --- POWER ------------ Micro Fission Core Light Quantum Reactor > --- PROPULSION ------- Combat Gravmag System Combat Gravmag System Improved Antigrav System Experimental Gyrokinetic Inverter Combat Linear Gravjet > --- UTILITY ---------- Experimental Power Amplifier Advanced Cooling System Advanced Energy Well Spectral Analyzer Advanced Signal Interpreter Advanced Targeting Computer Experimental Melee Analysis Suite Advanced Launcher Guidance Computer Advanced Launcher Guidance Computer Medium Insulated Plating Experimental Shock Absorption System Improved Hacking Suite Advanced Hacking Suite Improved System Shield Advanced System Shield Drone Bay > --- WEAPON ----------- Enhanced Nova Cannon Particle Cleaver > --- INVENTORY -------- Combat Gravmag System Advanced Matter Compressor Fusion Bomb Launcher [Rating: 176] Favorites ----------- Power Micro Fission Core Engine Reinforced Ion Engine Power Core Micro Fission Core Reactor Light Quantum Reactor Propulsion Light Treads Treads Light Treads Wheel Armored Huge Wheel Hover Unit Improved Antigrav System Flight Unit Improved Flight Unit Utility Hacking Suite Device Advanced Weight Redist. System Storage High-capacity Storage Unit Processor Salvage Targeting Computer Hackware Hacking Suite Protection Hardened Light Armor Plating Weapon Heavy Assault Rifle Energy Gun EM Pulse Gun Energy Cannon Light EM Pulse Cannon Ballistic Gun Heavy Assault Rifle Ballistic Cannon Heavy Gauss Cannon Launcher Mini Grenade Launcher Special Weapon Molecular Deconstructor Impact Weapon Power Maul Slashing Weapon Katana Piercing Weapon Makeshift Spear Build | -11 -10 -10 -9 -9 -9 -8 -8 -7 -7 -7 -7 -6 -6 -6 -6 -6 -5 -5 -5 -5 -5 -4 -4 -4 -4 -4 -4 -3 -2 -1 ------- Run | Scr Mat Min Mat Min Exi Min Mat Fac Low Low Dat Pro Fac Low Low Zio Pro Fac Upp Upp War Pro Fac Ext Cet Arc Hub Res Res Acc Slots Evolved 18 | . . . 2 . . . 2 2 . . . . 2 . . . . 2 . . . . 2 . . . . 2 2 2 Power 1 | . . . . . . . . . . . . . . . . . . . . . . . 1 . . . . . . . Propulsion 3 | . . . . . . . . . . . . . . . . . . . . . . . 1 . . . . . 1 1 Utility 14 | . . . 2 . . . 2 2 . . . . 2 . . . . 2 . . . . . . . . . 2 1 1 Weapon . | . . . . . . . . . . . . . . . . . . . . . . . . . . . . . . . Parts Attached 393 | 7 8 5 36 2 1 2 19 37 . 5 . . 11 1 3 4 2 11 3 9 20 4 11 38 11 4 28 25 80 6 Power 44 | 1 1 2 3 . . . 1 5 . 2 . . 2 . . . 1 1 . . 2 1 1 2 1 . 5 3 10 . Engine 13 | 1 1 2 3 . . . 1 4 . 1 . . . . . . . . . . . . . . . . . . . . Core 21 | . . . . . . . . 1 . 1 . . 2 . . . 1 1 . . . 1 1 2 . . 2 3 6 . Reactor 10 | . . . . . . . . . . . . . . . . . . . . . 2 . . . 1 . 3 . 4 . Propulsion 73 | 2 1 . 8 . . . 3 7 . . . . 1 . . . . 4 . 1 3 . 4 4 1 1 2 8 20 3 Treads 22 | 2 1 . 8 . . . 2 2 . . . . . . . . . . . . . . . 4 1 1 1 . . . Leg . | . . . . . . . . . . . . . . . . . . . . . . . . . . . . . . . Wheel 1 | . . . . . . . . 1 . . . . . . . . . . . . . . . . . . . . . . Hover 29 | . . . . . . . 1 2 . . . . . . . . . . . . 2 . 3 . . . 1 5 12 3 Flight 21 | . . . . . . . . 2 . . . . 1 . . . . 4 . 1 1 . 1 . . . . 3 8 . Utility 167 | 2 2 . 10 1 1 . 6 17 . 2 . . 6 1 2 4 1 4 1 4 12 1 5 11 6 3 14 10 39 2 Device 68 | . . . 2 . . . 3 4 . 1 . . 2 . . 1 1 1 1 4 6 1 2 6 3 2 6 5 17 . Storage 23 | 2 2 . 2 . 1 . . 3 . . . . . . . . . . . . 2 . 2 1 . 1 1 1 4 1 Processor 21 | . . . . . . . 1 2 . . . . . . 1 . . . . . 3 . . . . . 3 2 9 . Hackware 18 | . . . . . . . . 5 . . . . 1 . 1 2 . 3 . . . . . . 1 . . 2 2 1 Protection 37 | . . . 6 1 . . 2 3 . 1 . . 3 1 . 1 . . . . 1 . 1 4 2 . 4 . 7 . Artifact . | . . . . . . . . . . . . . . . . . . . . . . . . . . . . . . . Weapon 109 | 2 4 3 15 1 . 2 9 8 . 1 . . 2 . 1 . . 2 2 4 3 2 1 21 3 . 7 4 11 1 Energy Gun 22 | . 1 1 8 . . . 2 1 . . . . . . . . . . . . 2 1 1 4 . . . . 1 . Energy Cannon 14 | . . . 2 . . . 3 . . . . . . . . . . . . . . . . 5 1 . . 1 2 . Ballistic Gun 28 | 2 . 1 2 1 . 1 2 2 . . . . . . . . . . 1 . . . . 9 2 . 5 . . . Ballistic Cannon 5 | . . . . . . . . . . . . . . . . . . . . 1 1 . . 2 . . . . 1 . Launcher 22 | . 2 1 3 . . 1 1 2 . . . . 1 . . . . 1 1 3 . . . . . . . 1 4 1 Special Weapon 1 | . . . . . . . . . . . . . . . . . . . . . . 1 . . . . . . . . Impact Weapon 5 | . 1 . . . . . . 1 . . . . . . . . . . . . . . . . . . 2 1 . . Slashing Weapon 9 | . . . . . . . 1 2 . 1 . . 1 . 1 . . . . . . . . 1 . . . . 2 . Piercing Weapon 3 | . . . . . . . . . . . . . . . . . . 1 . . . . . . . . . 1 1 . Special Melee Weapon . | . . . . . . . . . . . . . . . . . . . . . . . . . . . . . . . Unidentified Prototypes 41 | . . . . . . . 3 2 . . . . . . . 1 . 1 . . 9 1 . . 3 . 2 3 16 . Parts Lost 91 | . . . 1 . . . 1 . . 1 . . . 1 1 . 1 3 . 4 . 3 1 5 7 . 17 15 29 1 Power 10 | . . . 1 . . . . . . . . . . . . . . . . . . . . . 2 . 2 2 3 . Propulsion 22 | . . . . . . . . . . . . . . . . . . 1 . 1 . 1 . 2 1 . 3 4 9 . Utility 39 | . . . . . . . . . . 1 . . . . . . 1 1 . 2 . 2 . 2 4 . 8 6 12 . Weapon 20 | . . . . . . . 1 . . . . . . 1 1 . . 1 . 1 . . 1 1 . . 4 3 5 1 Highest Loss Streak 12 | . . . 1 . . . 1 . . 1 . . . 1 1 . 1 3 . 3 . 2 1 2 6 . 8 12 12 1 Average Slot Usage (%) 92 | . 99 100 99 100 100 100 99 96 100 94 92 92 84 85 82 86 83 88 83 79 84 86 84 93 82 85 85 72 78 96 Engine 5 | . 14 14 10 11 11 11 9 6 . 1 . . . . . . . . . . . . . . . . . . . . Core 2 | . . . . . . . . . 7 5 7 7 6 6 6 6 6 5 5 5 4 . 7 10 2 . 1 6 3 4 Treads 10 | . 27 28 21 22 22 22 18 3 . . . . . . . . . . . . . . . 2 6 6 7 . . . Hover 2 | . . . . . . . . 1 . . . . . . . . . . . . 6 9 10 10 . . . 8 9 19 Flight 3 | . . . . . . . . 6 15 15 15 15 13 13 13 13 13 9 11 11 4 . 2 . . . . 2 4 . Device 9 | . . . 5 11 . . 1 13 15 11 15 15 12 20 20 20 16 14 17 17 22 20 17 13 11 12 11 1 15 16 Storage 16 | . 28 28 22 22 32 33 27 15 7 7 7 7 6 6 6 6 6 5 5 5 7 11 12 15 10 12 15 15 1 4 Processor 3 | . . . . . . . 8 7 7 7 7 7 5 . . 3 . . . . 3 . . . . . 3 13 18 24 Hackware 12 | . . . . . . . . 13 30 26 23 23 26 26 28 28 33 37 35 30 25 23 21 21 22 26 19 15 12 13 Protection 7 | . . . 16 11 11 11 17 8 . 2 . . 5 . 6 6 6 5 5 5 5 8 7 8 12 10 8 . 3 4 Energy Gun 2 | . 7 13 9 . . . 1 2 . . . . . . . . . . . . . 2 2 3 . . . . . . Energy Cannon 2 | . . . 2 11 11 . 7 1 . . . . . . . . . . . . . . . . 1 . . 1 2 4 Ballistic Gun 5 | . 13 14 8 10 11 11 3 2 . . . . . . . . . . . . . . . 2 8 10 7 1 . . Launcher 1 | . 4 . 1 . . 10 . 3 7 7 7 7 . 5 . . . 1 1 1 . . . . . . . . . . Slashing Weapon 1 | . . . . . . . 5 3 7 5 7 7 5 5 . . . . . . . . . 1 . . . . . 3 Naked Turns . | . . . . . . . . . . . . . . . . . . . . . . . . . . . . . . . Heaviest Build 131 | 17 43 46 90 90 118 118 126 131 20 20 20 20 23 20 22 20 21 29 27 46 54 63 61 76 93 86 96 55 86 100 Greatest Support 120 | 40 40 40 40 40 40 40 40 40 21 21 21 21 30 21 30 21 21 29 24 33 58 58 63 107 107 108 108 52 87 120 Greatest Overweight (x) 7 | 2 1 1 4 2 2 2 3 4 . . . . 1 . . . . 1 1 2 . 1 1 2 1 1 4 2 7 . Average Overweight (x) . | . . . 1 2 2 2 2 . . . . . . . . . . . . . . . . . . . . . . . Largest Inventory Capacity 28 | 8 16 16 20 20 28 28 28 28 8 8 8 8 8 8 8 8 8 8 8 8 8 8 16 16 16 12 12 12 4 12 Average Capacity 15 | 5 9 16 19 20 27 28 28 18 8 8 8 8 8 8 8 8 8 8 8 8 8 8 11 16 12 12 12 9 4 5 Most Carried 28 | 7 10 16 20 20 25 25 28 28 8 8 7 7 8 7 8 8 8 8 8 8 8 8 16 16 12 12 12 12 4 4 Average Carried 14 | 4 7 15 19 19 23 25 27 18 8 7 7 7 7 6 7 7 7 7 7 6 7 7 9 14 11 12 10 8 3 3 Final Capacity 28 | 8 16 16 20 20 28 28 28 8 8 8 8 8 8 8 8 8 8 8 8 8 8 8 16 16 12 12 12 4 4 12 Final Carried 27 | 7 10 16 20 20 25 25 27 8 8 7 7 7 6 7 8 8 8 7 8 7 8 8 15 13 12 12 10 4 4 3 Class Distribution -------------------- 28% | Hauler-Mutant 24% | Hacker-Mutant 16% | Hacker-Sprinter 11% | Mutant 8% | Scavenger-Mutant 3% | Wizard-Sprinter Dominant Class ---------------- Mutant | -10/Materials Mutant | -10/Mines Hauler-Mutant | -9/Materials Hauler-Mutant | -9/Mines Hauler-Mutant | -9/Exiles Hauler-Mutant | -8/Mines Hauler-Mutant | -8/Materials Hacker-Sprinter | -7/Factory Hacker-Sprinter | -7/Lower Caves Hacker-Sprinter | -7/Lower Caves Hacker-Sprinter | -7/Data Miner Hacker-Sprinter | -6/Proximity Caves Hacker-Sprinter | -6/Factory Hacker-Sprinter | -6/Lower Caves Hacker-Sprinter | -6/Lower Caves Hacker-Sprinter | -6/Zion Hacker-Sprinter | -5/Proximity Caves Wizard-Sprinter | -5/Factory Wizard-Sprinter | -5/Upper Caves Hacker-Sprinter | -5/Upper Caves Hacker-Mutant | -5/Warlord Hacker-Mutant | -4/Proximity Caves Hacker-Mutant | -4/Factory Hacker-Mutant | -4/Extension Hacker-Mutant | -4/Cetus Hacker-Mutant | -4/Archives Hacker-Mutant | -4/Hub_04(d) Hacker-Mutant | -3/Research Hacker-Mutant | -2/Research Scavenger-Mutant | -1/Access Resources | -11 -10 -10 -9 -9 -9 -8 -8 -7 -7 -7 -7 -6 -6 -6 -6 -6 -5 -5 -5 -5 -5 -4 -4 -4 -4 -4 -4 -3 -2 -1 ----------- Run | Scr Mat Min Mat Min Exi Min Mat Fac Low Low Dat Pro Fac Low Low Zio Pro Fac Upp Upp War Pro Fac Ext Cet Arc Hub Res Res Acc Matter Collected 6725 | 276 267 136 412 140 . 94 281 439 . 40 . 124 . 121 35 40 20 33 123 214 336 10 71 725 221 152 1169 213 942 91 Remotely . | . . . . . . . . . . . . . . . . . . . . . . . . . . . . . . . Salvage Created 7562 | 95 392 79 1015 106 . 345 814 308 . 29 . 27 . 80 . . . 246 112 90 . 75 . 773 398 269 1358 260 303 388 Parts 382 | 2 31 4 73 2 . 14 39 20 . 3 . 5 . 3 . . . 10 11 3 . 1 . 23 27 7 61 22 14 7 Haulers Intercepted 9 | . 1 . 2 . . . 1 2 . . . . . . . . . . . . . . . . . . . 1 1 1 Recyclers Shooed 1 | . . . 1 . . . . . . . . . . . . . . . . . . . . . . . . . . . Parts Field Recycled . | . . . . . . . . . . . . . . . . . . . . . . . . . . . . . . . Retrieved Matter . | . . . . . . . . . . . . . . . . . . . . . . . . . . . . . . . Parts Self-Destructed 74 | . . . . . . . . . . 2 . 9 . 5 . . . . 11 3 43 1 . . . . . . . . Prevented 25 | . . . . . . . . . . . . . . . 2 . . . 1 3 19 . . . . . . . . . Kills | -11 -10 -10 -9 -9 -9 -8 -8 -7 -7 -7 -7 -6 -6 -6 -6 -6 -5 -5 -5 -5 -5 -4 -4 -4 -4 -4 -4 -3 -2 -1 ------- Run | Scr Mat Min Mat Min Exi Min Mat Fac Low Low Dat Pro Fac Low Low Zio Pro Fac Upp Upp War Pro Fac Ext Cet Arc Hub Res Res Acc Combat Hostiles Destroyed 127 | . 8 3 18 2 . 6 14 2 . 4 . 2 . 3 . . . 4 4 3 . 2 . 12 7 3 17 5 3 5 Melee 7 | . . . . . . . 3 1 . . . . . 1 . . . . . . . . . . . . 1 1 . . Guns 59 | . 5 . 10 1 . . 7 1 . . . . . . . . . . 1 . . 2 . 7 6 3 16 . . . Cannons 12 | . . . . 1 . . 3 . . . . . . . . . . . . . . . . 4 1 . . 1 . 2 AOE 47 | . 3 3 8 . . 5 . . . 4 . 2 . 2 . . . 4 3 3 . . . 1 . . . 3 3 3 Classes Destroyed 17 | 1 6 1 4 . . . 1 1 . . . . . 1 . . . 1 . . . . . . . . . . 1 . Worker 16 | . 1 . 4 . . 2 3 1 . . . . . . . . . 1 . . . . . . . . 2 . 1 1 Builder 6 | . . 1 2 . . . . . . . . . . . . . . . . . . . . . . . 1 1 . 1 Tunneler 3 | . 1 . . . . 2 . . . . . . . . . . . . . . . . . . . . . . . . Hauler 9 | . 1 . 2 . . . 1 2 . . . . . . . . . . . . . . . . . . . 1 1 1 Recycler 4 | 1 . . 1 . . . 1 . . . . . . . . . . 1 . . . . . . . . . . . . Minesweeper 1 | . . . . . . . . . . . . . . 1 . . . . . . . . . . . . . . . . Operator 5 | . . . 1 . . . . . . . . . . . . . . . . . . . . . . . 1 . 2 1 Watcher 7 | . 1 . . . . . . 3 . . . . . . . . . 1 . . . . . . . . 1 . . 1 Swarmer 41 | . 3 3 6 . . 3 3 . . 4 . 2 . 3 . . . . 4 3 . . . 1 2 . . 3 1 . Grunt 37 | . 5 . 5 1 . 3 7 . . . . . . . . . . . . . . . . 4 2 . 4 . 2 4 Brawler 1 | . . . 1 . . . . . . . . . . . . . . . . . . . . . . . . . . . Duelist 3 | . . . 1 1 . . . . . . . . . . . . . . . . . . . 1 . . . . . . Protector 1 | . . . . . . . . . . . . . . . . . . 1 . . . . . . . . . . . . Sentry 21 | . . . 5 . . . 3 . . . . . . . . . . . . . . . . 5 . 3 4 . . 1 Hunter 7 | . . . . . . . 1 . . . . . . . . . . . . . . . . . . . 6 . . . Programmer 14 | . . . . . . . . 2 . . . . . . . . . 4 . . . 2 . . 1 . 3 2 . . Cetus Guard 2 | . . . . . . . . . . . . . . . . . . . . . . . . . 2 . . . . . Samaritan 1 | . . . . . . . . . . . . . . . . . . . . . . . . . . . . . 1 . Savage 1 | . . . . . . . . . . . . . . . . . . . . . . . . 1 . . . . . . Best Kill Streak 8 | 1 4 3 6 2 . 7 8 1 . 4 . 2 . 3 . . . 3 3 2 . 2 . 5 3 2 6 4 3 8 Combat Bots Only 5 | . 3 3 4 2 . 3 4 1 . 4 . 2 . 3 . . . 2 3 2 . 2 . 5 3 2 5 3 2 4 Max Kills in Single Turn 4 | 1 2 1 4 1 . 2 2 1 . 2 . 2 . 2 . . . 3 3 1 . 1 . 1 2 1 2 2 3 4 Gunslinging 1 | . . . . . . . . . . . . . . . . . . . . . . . . . 1 . . . . . Exploded 3 | . 2 1 3 . . 1 . . . 2 . 2 . 2 . . . 2 3 1 . . . 1 . . . 2 1 2 Melee 1 | . . . . . . . 1 1 . . . . . 1 . . . . . . . . . . . . 1 1 . . Uniques/NPCs Destroyed . | . . . . . . . . . . . . . . . . . . . . . . . . . . . . . . . Combat | -11 -10 -10 -9 -9 -9 -8 -8 -7 -7 -7 -7 -6 -6 -6 -6 -6 -5 -5 -5 -5 -5 -4 -4 -4 -4 -4 -4 -3 -2 -1 -------- Run | Scr Mat Min Mat Min Exi Min Mat Fac Low Low Dat Pro Fac Low Low Zio Pro Fac Upp Upp War Pro Fac Ext Cet Arc Hub Res Res Acc Damage Taken 18088 | . 345 46 758 99 . 274 632 135 . 333 . 39 . 40 137 . 63 340 226 592 460 601 64 1943 869 609 4757 1378 3068 280 Core 3060 | . 74 7 114 12 . 49 58 32 . 149 . . . . . . . 46 76 168 63 146 24 265 10 50 434 332 951 . Absorbed by Shields 1576 | . . . . . . . . . . . . . . . . . . . . 19 59 45 . 328 159 . 953 . 13 . Reduced by Siege Mode 89 | . . . . . . . . . . . . . . . . . . . . . . . . . . . 89 . . . Core Remaining (%) 70 | 100 . 67 . . . 56 89 . . . . 74 . . . . 100 . . . . 50 . . . . 31 74 34 100 Volleys Fired 488 | 1 40 10 66 12 . 12 31 11 . 5 . 2 . 2 . . . . 9 19 . 8 . 80 29 14 88 14 17 18 Largest 2 | 2 2 2 2 2 . 1 2 2 . 1 . 1 . 1 . . . . 1 1 . 1 . 2 2 2 2 1 2 1 Hottest 240 | 40 40 60 131 79 . 33 131 103 . 30 . 30 . 30 . . . . 43 61 . 60 . 141 114 70 70 98 240 120 Shots Fired 701 | 2 73 14 102 15 . 12 51 22 . 5 . 2 . 2 . . . . 8 19 . 8 . 89 43 28 156 13 19 18 Gun 492 | 2 67 10 78 3 . . 32 19 . . . . . . . . . . 4 . . 5 . 54 34 28 156 . . . Cannon 124 | . . . 6 12 . . 19 3 . . . . . . . . . . . 1 . . . 35 9 . . 11 14 14 Launcher 82 | . 6 4 18 . . 12 . . . 5 . 2 . 2 . . . . 4 18 . . . . . . . 2 5 4 Special 3 | . . . . . . . . . . . . . . . . . . . . . . 3 . . . . . . . . Kinetic 438 | 2 66 6 38 3 . . 24 11 . . . . . . . . . . 4 1 . . . 65 34 28 156 . . . Thermal 77 | . . . 22 . . . 8 8 . . . . . . . . . . . . . . . . . . . 11 14 14 Explosive 20 | . . . . . . . . . . 5 . 2 . 2 . . . . . . . . . . . . . 2 5 4 Electromagnetic 152 | . 7 8 42 12 . 12 19 3 . . . . . . . . . . 4 18 . . . 18 9 . . . . . Entropic 11 | . . . . . . . . . . . . . . . . . . . . . . 5 . 6 . . . . . . Robot Hit Streak 18 | 2 18 9 14 8 . 9 11 6 . 3 . . . . . . . . 2 . . 6 . 9 7 7 13 14 5 13 Robot Miss Streak 7 | . 3 . 2 3 . . 3 6 . . . . . . . . . . 2 . . 1 . 7 6 1 5 1 1 1 Penetration Max 1 | . . . . . . . . . . . . . . . . . . . . . . . . 1 1 . 1 . . . Secondary Targets 6 | . . . 1 . . . . . . . . . . . . . . . . . . . . 1 1 1 2 . . . Max Gunslinging Chain 1 | . . . 1 . . . . . . . . . . . . . . . . . . . . 1 1 1 1 . . . Shots Hit Robots 494 | 2 50 9 60 11 . 1 46 25 . 3 . . 1 4 2 . . 6 2 . . 6 . 54 27 23 116 18 10 18 Core Hits 310 | 2 20 8 40 3 . 10 32 14 . 6 . 5 . 5 . . . 12 5 6 . 4 . 24 13 10 44 14 13 20 Critical Hits 47 | . . . . . . . . . . . . . . . . . . . 1 . . . . 7 5 3 28 3 . . Critical Kills 22 | . . . . . . . . . . . . . . . . . . . 1 . . . . 3 4 1 11 2 . . Critical Parts Destroyed 22 | . . . . . . . . . . . . . . . . . . . . . . . . 3 . 1 17 1 . . Melee Attacks 194 | . 1 . . . . . 13 40 1 3 . . 30 7 3 . . 47 . . . . . 2 . . 7 23 3 14 Impact 20 | . 1 . . . . . . 3 . . . . . . . . . . . . . . . . . . 7 9 . . Slashing 110 | . . . . . . . 13 37 1 3 . . 30 7 3 . . . . . . . . 2 . . . . . 14 Piercing 64 | . . . . . . . . . . . . . . . . . . 47 . . . . . . . . . 14 3 . Sneak Attacks 12 | . . . . . . . 1 3 . . . . . 1 . . . 4 . . . . . . . . 1 1 . 1 Combat Hostiles . | . . . . . . . . . . . . . . . . . . . . . . . . . . . . . . . Follow-up Attacks . | . . . . . . . . . . . . . . . . . . . . . . . . . . . . . . . Damage Inflicted 20182 | 26 807 165 1689 312 . 552 1219 883 . 538 . 123 40 389 67 . . 1608 170 368 . 194 . 1624 773 603 2971 1325 1428 2308 Guns 7745 | 26 661 80 907 42 . . 573 257 . . . . . . . . . . 27 . . 194 . 1003 621 603 2751 . . . Cannons 2811 | . . . 106 205 . . 351 120 . . . . . . . . . . . . . . . 588 152 . . 343 385 561 Explosions 7019 | . 146 85 676 65 . 552 50 . . 538 . 123 . 171 . . . 1133 143 368 . . . . . . . 615 1043 1311 Melee 2586 | . . . . . . . 245 506 . . . . 40 197 67 . . 475 . . . . . 33 . . 220 367 . 436 Ramming 21 | . . . . . . . . . . . . . . 21 . . . . . . . . . . . . . . . . Kinetic 6736 | 26 646 35 297 42 . . 423 119 . . . . . . . . . . 27 . . . . 1146 621 603 2751 . . . Thermal 3129 | . 32 . 637 65 . 31 200 138 . . . . . . . . . 720 17 . . . . . . . . 343 385 561 Explosive 4214 | . . . . . . . . . . 538 . 123 . 171 . . . 413 . . . . . . . . . 615 1043 1311 Electromagnetic 3083 | . 129 130 755 205 . 521 351 120 . . . . . . . . . . 126 368 . . . 226 152 . . . . . Impact 254 | . . . . . . . . 34 . . . . . . . . . . . . . . . . . . 220 . . . Slashing 1490 | . . . . . . . 245 472 . . . . 40 197 67 . . . . . . . . 33 . . . . . 436 Piercing 842 | . . . . . . . . . . . . . . . . . . 475 . . . . . . . . . 367 . . Entropic 413 | . . . . . . . . . . . . . . . . . . . . . . 194 . 219 . . . . . . Highest Corruption 12 | . 3 3 . . . . 1 3 3 3 3 3 . . . . . 8 9 12 12 3 . . . . 8 10 3 . Average Corruption 3 | . 2 3 . . . . 1 2 3 3 3 3 . . . . . 8 8 10 1 2 . . . . 4 9 2 . Corruption Purged . | . . . . . . . . . . . . . . . . . . . . . . . . . . . . . . . Effects 142 | . 5 21 . . . . 1 18 2 8 1 6 . . . . . . 6 33 1 3 . . . . 10 16 11 . Message Errors 31 | . 2 10 . . . . 1 4 . 2 1 1 . . . . . . . 1 . 1 . . . . 1 2 5 . Matter Fused 23 | . 1 4 . . . . . 4 1 2 . 1 . . . . . . 2 3 . . . . . . . 4 1 . Heat Flow Errors 21 | . . 2 . . . . . 4 1 2 . 3 . . . . . . 1 5 . . . . . . 2 . 1 . Energy Discharges 11 | . 1 1 . . . . . 2 . . . 1 . . . . . . . 2 . 1 . . . . 1 . 2 . Data Loss (minor) 18 | . 1 3 . . . . . 4 . . . . . . . . . . 2 2 . 1 . . . . 3 1 1 . Data Loss (major) 3 | . . . . . . . . . . . . . . . . . . . . 2 . . . . . . 1 . . . Misdirections 22 | . . . . . . . . . . . . . . . . . . . . 14 1 . . . . . . 7 . . Targeting Errors 10 | . . 1 . . . . . . . 2 . . . . . . . . . 4 . . . . . . 1 1 1 . Weapon Failures 3 | . . . . . . . . . . . . . . . . . . . 1 . . . . . . . 1 1 . . Overload Shots . | . . . . . . . . . . . . . . . . . . . . . . . . . . . . . . . Overflow Damage 1098 | . . . 10 . . . . 117 . 122 . . . 82 . . . 184 . 5 . . . 21 . . 94 64 32 367 Projectiles 49 | . . . . . . . . 16 . . . . . . . . . . . . . . . 21 . . . . . 12 Explosions 505 | . . . 10 . . . . . . 122 . . . 15 . . . 160 . 5 . . . . . . . 64 32 97 Melee 544 | . . . . . . . . 101 . . . . . 67 . . . 24 . . . . . . . . 94 . . 258 Knockbacks 1 | . . . . . . . . . . . . . . . . . . . . . . . . 1 . . . . . . Impact . | . . . . . . . . . . . . . . . . . . . . . . . . . . . . . . . Kinetic 1 | . . . . . . . . . . . . . . . . . . . . . . . . 1 . . . . . . Secondary . | . . . . . . . . . . . . . . . . . . . . . . . . . . . . . . . Self-Inflicted Damage 392 | . 19 . 70 33 . 126 . . . . . . . 10 . . . . 21 86 . . . . . . . 1 26 . Shots 25 | . 1 . 6 1 . 8 . . . . . . . . . . . . 1 6 . . . . . . . 1 1 . Rammed 1 | . . . . . . . . . . . . . . 1 . . . . . . . . . . . . . . . . Targets Rammed 1 | . . . . . . . . . . . . . . 1 . . . . . . . . . . . . . . . . Kicked . | . . . . . . . . . . . . . . . . . . . . . . . . . . . . . . . Crushed . | . . . . . . . . . . . . . . . . . . . . . . . . . . . . . . . Highest Temperature 416 | . 2 229 323 2 . 81 416 258 136 219 . 274 . . . . . . 133 273 315 . . 337 314 . 107 322 234 210 Average Temperature 98 | . 2 71 98 2 . 27 99 105 109 82 . 105 . . . . . . 69 74 160 . . 116 136 . 36 133 105 74 Received Heat Transfer 2175 | . 123 9 189 18 . 63 234 . . 90 . . . . . . 9 27 . 27 56 45 9 279 171 81 517 66 117 45 Effects 2 | . . . . . . . . . . . . . . . . . . . . . . . . 2 . . . . . . Interference 2 | . . . . . . . . . . . . . . . . . . . . . . . . 2 . . . . . . Siege Activations 2 | . . . . . . . . . . . . . . . . . . . . . . . . . . . 2 . . . Total Turns 60 | . . . . . . . . . . . . . . . . . . . . . . . . . . . 60 . . . Longest Duration 36 | . . . . . . . . . . . . . . . . . . . . . . . . . . . 36 . . . Robots Corrupted 2 | . . . . . . 1 1 . . . . . . . . . . . . . . . . . . . . . . . Combat Hostiles 2 | . . . . . . 1 1 . . . . . . . . . . . . . . . . . . . . . . . Parts Fried 14 | . . 1 2 . . 6 . 1 . . . . . . . . . . 1 . . . . 2 . . 1 . . . Impact Corruptions 3 | . . . . . . . . . . . . . . . . . . . . . . . . . . . 3 . . . Robots Melted . | . . . . . . . . . . . . . . . . . . . . . . . . . . . . . . . Combat Hostiles . | . . . . . . . . . . . . . . . . . . . . . . . . . . . . . . . Parts Melted 6 | . . . 1 . . . 1 . . . . . . . . . . . . . . . . 1 . . . . 2 1 Heat Transferred 3525 | . 50 . 1053 100 . 100 359 222 . . . . . . . . . 500 50 . . . . . . . . 296 314 481 Parts Sabotaged . | . . . . . . . . . . . . . . . . . . . . . . . . . . . . . . . Parts Stolen . | . . . . . . . . . . . . . . . . . . . . . . . . . . . . . . . Parts Stripped . | . . . . . . . . . . . . . . . . . . . . . . . . . . . . . . . Power Chain Reactions 15 | . 1 . 8 2 . 2 1 . . . . . . . . . . . 1 . . . . . . . . . . . Missiles Intercepted . | . . . . . . . . . . . . . . . . . . . . . . . . . . . . . . . Alert | -11 -10 -10 -9 -9 -9 -8 -8 -7 -7 -7 -7 -6 -6 -6 -6 -6 -5 -5 -5 -5 -5 -4 -4 -4 -4 -4 -4 -3 -2 -1 ------- Run | Scr Mat Min Mat Min Exi Min Mat Fac Low Low Dat Pro Fac Low Low Zio Pro Fac Upp Upp War Pro Fac Ext Cet Arc Hub Res Res Acc Peak Influence 1064 | 5 175 131 468 206 . 95 198 498 . . . . 203 . . . . 539 . . . . 400 1064 1026 547 558 285 751 890 Initial 595 | . 3 46 1 156 . . . 38 . . . . 78 . . . . 9 . . . . 31 196 595 330 191 285 95 348 Average 208 | 1 69 27 190 77 . 35 60 136 . . . . 94 . . . . 111 . . . . 61 409 827 472 438 118 541 516 Maximum Alert Level 3 | . . . 2 1 . . . 2 . . . . 1 . . . . 2 . . . . 2 3 3 2 2 1 3 3 Low Security (%) 64 | 100 100 100 53 73 . 100 100 72 . . . . 96 . . . . 79 . . . . 95 24 . . 4 94 14 . Level 1 13 | . . . 32 26 . . . 12 . . . . 3 . . . . 8 . . . . . 34 . 26 21 5 8 41 Level 2 15 | . . . 13 . . . . 14 . . . . . . . . . 12 . . . . 4 20 13 73 73 . 46 48 Level 3 6 | . . . . . . . . . . . . . . . . . . . . . . . . 20 86 . . . 30 10 Level 4 . | . . . . . . . . . . . . . . . . . . . . . . . . . . . . . . . Level 5 . | . . . . . . . . . . . . . . . . . . . . . . . . . . . . . . . High Security . | . . . . . . . . . . . . . . . . . . . . . . . . . . . . . . . Max Security . | . . . . . . . . . . . . . . . . . . . . . . . . . . . . . . . Squads Dispatched 36 | . 2 . 3 . . . 3 3 . 1 . . 1 . . . . 3 . . . . . 5 . . 4 4 1 6 Investigation 12 | . 1 . 1 . . . 3 . . . . . 1 . . . . 1 . . . . . 1 . . . 1 . 3 Extermination 8 | . . . . . . . . 3 . . . . . . . . . 1 . . . . . . . . 1 2 . 1 Reinforcement 14 | . 1 . 2 . . . . . . . . . . . . . . 1 . . . . . 4 . . 3 1 1 1 Assault 2 | . . . . . . . . . . 1 . . . . . . . . . . . . . . . . . . . 1 Garrison . | . . . . . . . . . . . . . . . . . . . . . . . . . . . . . . . Intercept . | . . . . . . . . . . . . . . . . . . . . . . . . . . . . . . . Construction Impeded 3 | . . . . . . . . . . . . . . . . . . . . . . . . 2 . . . 1 . . Haulers Reinforced . | . . . . . . . . . . . . . . . . . . . . . . . . . . . . . . . Stealth | -11 -10 -10 -9 -9 -9 -8 -8 -7 -7 -7 -7 -6 -6 -6 -6 -6 -5 -5 -5 -5 -5 -4 -4 -4 -4 -4 -4 -3 -2 -1 --------- Run | Scr Mat Min Mat Min Exi Min Mat Fac Low Low Dat Pro Fac Low Low Zio Pro Fac Upp Upp War Pro Fac Ext Cet Arc Hub Res Res Acc Distress Signals 41 | . 2 . 2 . . . . . . . . . . . . . . 2 . . 1 . . 1 1 . 4 3 22 3 Communications Jammed 11 | . . . . . . . . . . . . . . . . . . . . . . . . . . . . . 11 . Distress Signals 11 | . . . . . . . . . . . . . . . . . . . . . . . . . . . . . 11 . Times Spotted 498 | . 16 4 32 2 . 5 24 17 2 21 . 9 6 16 2 . 5 19 16 33 37 8 10 46 21 4 29 20 82 12 Peak Tracking Total 28 | . 6 2 5 2 . 3 4 3 6 15 . 4 4 8 2 . 5 10 9 7 12 5 7 8 8 2 5 12 28 6 Tactical Retreats 60 | . . . 3 . . . . 1 . 5 . 1 1 4 2 . 1 1 6 10 4 1 1 4 . . . 1 13 1 Traps | -11 -10 -10 -9 -9 -9 -8 -8 -7 -7 -7 -7 -6 -6 -6 -6 -6 -5 -5 -5 -5 -5 -4 -4 -4 -4 -4 -4 -3 -2 -1 ------- Run | Scr Mat Min Mat Min Exi Min Mat Fac Low Low Dat Pro Fac Low Low Zio Pro Fac Upp Upp War Pro Fac Ext Cet Arc Hub Res Res Acc Traps Triggered 17 | . 2 . 2 . . . 1 1 . . . . 2 . . . . . . . 2 . 2 2 . . 3 . . . Indirectly . | . . . . . . . . . . . . . . . . . . . . . . . . . . . . . . . Trap Hack Attempts . | . . . . . . . . . . . . . . . . . . . . . . . . . . . . . . . Triggered . | . . . . . . . . . . . . . . . . . . . . . . . . . . . . . . . Disarmed . | . . . . . . . . . . . . . . . . . . . . . . . . . . . . . . . Reprogrammed 12 | . . . . . . . . . . . . . 6 . . . . 6 . . . . . . . . . . . . Reused 14 | . . . . . . . . . . . . . 3 . . . . 2 . . . . 2 6 . . . 1 . . Traps Extracted . | . . . . . . . . . . . . . . . . . . . . . . . . . . . . . . . Installed 34 | . . . . . . . . . . . . . . 3 . . . . . . . . 11 16 . . . 4 . . Triggered 28 | . . . 1 . . . . . . . . . 3 1 1 . . 2 . . 9 1 3 6 . . . 1 . . Exploded 1 | . . . . . . . . 1 . . . . . . . . . . . . . . . . . . . . . . Machines | -11 -10 -10 -9 -9 -9 -8 -8 -7 -7 -7 -7 -6 -6 -6 -6 -6 -5 -5 -5 -5 -5 -4 -4 -4 -4 -4 -4 -3 -2 -1 ---------- Run | Scr Mat Min Mat Min Exi Min Mat Fac Low Low Dat Pro Fac Low Low Zio Pro Fac Upp Upp War Pro Fac Ext Cet Arc Hub Res Res Acc Machines Disabled 31 | . 3 1 2 . . . . . 1 . . . . . . . . 7 . 2 . 1 . 3 1 3 3 1 1 2 Max in Single Turn 4 | . 2 1 1 . . . . . 1 . . . . . . . . 4 . 2 . 1 . . . 1 1 1 1 1 Garrison Access 7 | . . . . . . . . 2 . . . . 1 . . . . 1 . . . . . . . . . . 2 1 Energy Cycler 1 | . . . . . . . . . . . . . . . . . . . . . . . . 1 . . . . . . Machines Sabotaged . | . . . . . . . . . . . . . . . . . . . . . . . . . . . . . . . Garrisons Compromised . | . . . . . . . . . . . . . . . . . . . . . . . . . . . . . . . Overloaded Fab Kills . | . . . . . . . . . . . . . . . . . . . . . . . . . . . . . . . Fab Network Shutdowns 2 | . . . . . . . . 1 . . . . . . . . . . . . . . 1 . . . . . . . Hacking | -11 -10 -10 -9 -9 -9 -8 -8 -7 -7 -7 -7 -6 -6 -6 -6 -6 -5 -5 -5 -5 -5 -4 -4 -4 -4 -4 -4 -3 -2 -1 --------- Run | Scr Mat Min Mat Min Exi Min Mat Fac Low Low Dat Pro Fac Low Low Zio Pro Fac Upp Upp War Pro Fac Ext Cet Arc Hub Res Res Acc Machines Accessed 98 | . 8 . 5 1 2 . 7 17 . . 4 . 10 . . . . 9 . 2 10 . 5 5 1 . 2 3 . 7 Terminals 55 | . 7 . 3 1 . . 6 10 . . . . 6 . . . . 5 . 1 . . 1 5 1 . 2 2 . 5 Fabricators 11 | . . . . . . . . 3 . . . . 2 . . . . 2 . . . . 3 . . . . 1 . . Repair Stations 3 | . 1 . 1 . . . . 1 . . . . . . . . . . . . . . . . . . . . . . Recycling Units 1 | . . . . . . . . . . . . . . . . . . . . . . . . . . . . . . 1 Scanalyzers 5 | . . . 1 . . . 1 . . . . . 1 . . . . 1 . . . . 1 . . . . . . . Garrison Access 6 | . . . . . . . . 3 . . . . 1 . . . . 1 . . . . . . . . . . . 1 Total Hacks 442 | . 19 . 20 3 2 . 26 68 . . 27 . 77 . . . . 69 . 3 19 . 40 22 4 . 6 13 . 24 Successful 271 | . 8 . 16 2 2 . 15 41 . . 27 . 44 . . . . 44 . 3 19 . 25 13 1 . 1 5 . 5 Failed 170 | . 11 . 4 1 . . 11 27 . . . . 32 . . . . 25 . . . . 15 9 3 . 5 8 . 19 Catastrophic 22 | . 3 . 1 . . . 2 4 . . . . 1 . . . . 4 . . . . . 2 . . 1 1 . 3 Database Lockouts 1 | . . . . . . . . . . . . . 1 . . . . . . . . . . . . . . . . . Manual 221 | . 2 . 8 3 1 . 13 40 . . . . 45 . . . . 50 . 1 1 2 20 13 1 . 6 9 . 6 Terminals 283 | . 17 . 10 3 . . 24 51 . . . . 57 . . . . 46 . 2 . . 13 22 4 . 6 10 . 18 Fabricators 57 | . . . . . . . . 10 . . . . 13 . . . . 12 . . . . 19 . . . . 3 . . Repair Stations 7 | . 2 . 2 . . . . 3 . . . . . . . . . . . . . . . . . . . . . . Recycling Units 3 | . . . . . . . . . . . . . . . . . . . . . . . . . . . . . . 3 Scanalyzers 31 | . . . 8 . . . 2 . . . . . 3 . . . . 10 . . . . 8 . . . . . . . Garrison Access 12 | . . . . . . . . 4 . . . . 4 . . . . 1 . . . . . . . . . . . 3 Terminal Hacks 152 | . 6 . 2 . 2 . 10 22 . . 27 . 26 . . . . 16 . 3 19 . 4 8 1 . 1 2 . 3 Record 27 | . . . . . 1 . . . . . 11 . . . . . . . . 2 13 . . . . . . . . . Part Schematic 25 | . . . . . . . 3 6 . . 7 . 3 . . . . 4 . . . . 1 1 . . . . . . Robot Schematic 7 | . . . . . . . . . . . 6 . 1 . . . . . . . . . . . . . . . . . Prototype ID Bank 9 | . 1 . . . . . . 1 . . 3 . . . . . . . . . 4 . . . . . . . . . Open Door 5 | . . . . . . . . . . . . . . . . . . . . 1 2 . . . 1 . . . . 1 Level Access Points 3 | . . . . . . . 1 . . . . . 1 . . . . . . . . . . . . . 1 . . . Branch Access Points 5 | . . . . . . . . 1 . . . . 1 . . . . . . . . . 1 1 . . . 1 . . Emergency Access Points 3 | . 1 . . . . . 1 . . . . . 1 . . . . . . . . . . . . . . . . . Machine Index 2 | . . . . . . . . 1 . . . . . . . . . . . . . . . . . . . . . 1 Terminal Index 5 | . . . . . . . . 1 . . . . 1 . . . . 1 . . . . 1 1 . . . . . . Fabricator Index 3 | . . . . . . . . 1 . . . . 1 . . . . 1 . . . . . . . . . . . . Repair Station Index 2 | . . . . . . . . 1 . . . . . . . . . 1 . . . . . . . . . . . . Alert Level 1 | . . . . . . . . . . . . . 1 . . . . . . . . . . . . . . . . . Unreport Threat 9 | . . . . . . . 1 1 . . . . 3 . . . . 2 . . . . 1 . . . . 1 . . Locate Traps 9 | . 2 . . . . . 1 . . . . . 5 . . . . . . . . . . 1 . . . . . . Reprogram Traps 4 | . . . . . . . . 2 . . . . 1 . . . . 1 . . . . . . . . . . . . Patrol Status 1 | . . . . . . . . . . . . . 1 . . . . . . . . . . . . . . . . . Recall Investigation 2 | . . . . . . . . . . . . . 1 . . . . 1 . . . . . . . . . . . . Recall Extermination 2 | . . . . . . . . 1 . . . . . . . . . 1 . . . . . . . . . . . . Recall Reinforcements 3 | . . . . . . . . . . . . . . . . . . 2 . . . . . 1 . . . . . . Hauler Manifests 4 | . . . 2 . . . . 1 . . . . . . . . . . . . . . . 1 . . . . . . Registered Components 2 | . . . . . . . 1 . . . . . 1 . . . . . . . . . . . . . . . . . Registered Prototypes 1 | . . . . . . . . 1 . . . . . . . . . . . . . . . . . . . . . . Zone Layout 17 | . 2 . . . . . 2 4 . . . . 4 . . . . 2 . . . . . 2 . . . . . 1 EX-Prototype ID Bank 1 | . . . . . 1 . . . . . . . . . . . . . . . . . . . . . . . . . Fabricator Hacks 24 | . . . . . . . . 7 . . . . 3 . . . . 4 . . . . 9 . . . . 1 . . Load Schematic 11 | . . . . . . . . 3 . . . . 2 . . . . 2 . . . . 3 . . . . 1 . . Build 13 | . . . . . . . . 4 . . . . 1 . . . . 2 . . . . 6 . . . . . . . Repair Station Hacks 6 | . 2 . 2 . . . . 2 . . . . . . . . . . . . . . . . . . . . . . Scan Component 3 | . 1 . 1 . . . . 1 . . . . . . . . . . . . . . . . . . . . . . Repair 3 | . 1 . 1 . . . . 1 . . . . . . . . . . . . . . . . . . . . . . Recycling Unit Hacks . | . . . . . . . . . . . . . . . . . . . . . . . . . . . . . . . Scanalyzer 24 | . . . 8 . . . 2 . . . . . 3 . . . . 7 . . . . 4 . . . . . . . Insert Component 11 | . . . 4 . . . 1 . . . . . 2 . . . . 2 . . . . 2 . . . . . . . Analyze 13 | . . . 4 . . . 1 . . . . . 1 . . . . 5 . . . . 2 . . . . . . . Garrison Access Hacks 4 | . . . . . . . . 2 . . . . 1 . . . . 1 . . . . . . . . . . . . Seal Access 4 | . . . . . . . . 2 . . . . 1 . . . . 1 . . . . . . . . . . . . Unauthorized Hacks 61 | . . . 4 2 . . 3 8 . . . . 11 . . . . 16 . . . . 8 5 . . . 2 . 2 Terminals 47 | . . . 4 2 . . 3 8 . . . . 9 . . . . 11 . . . . 3 5 . . . 1 . 1 Track 10 | . . . 1 1 . . 1 1 . . . . 2 . . . . 2 . . . . 1 1 . . . . . . Assimilate 8 | . . . 1 . . . . 3 . . . . 2 . . . . 2 . . . . . . . . . . . . Botnet 16 | . . . 1 . . . 1 3 . . . . 3 . . . . 3 . . . . 1 2 . . . 1 . 1 Detonate 1 | . . . . . . . . . . . . . . . . . . 1 . . . . . . . . . . . . Disrupt 4 | . . . . 1 . . 1 . . . . . . . . . . 1 . . . . . 1 . . . . . . Operators 8 | . . . 1 . . . . 1 . . . . 2 . . . . 2 . . . . 1 1 . . . . . . Fabricators 13 | . . . . . . . . . . . . . 2 . . . . 5 . . . . 5 . . . . 1 . . Report 1 | . . . . . . . . . . . . . . . . . . 1 . . . . . . . . . . . . Prioritize 5 | . . . . . . . . . . . . . 1 . . . . 2 . . . . 2 . . . . . . . Siphon 6 | . . . . . . . . . . . . . 1 . . . . 1 . . . . 3 . . . . 1 . . Haulers 1 | . . . . . . . . . . . . . . . . . . 1 . . . . . . . . . . . . Repair Stations . | . . . . . . . . . . . . . . . . . . . . . . . . . . . . . . . Recycling Units . | . . . . . . . . . . . . . . . . . . . . . . . . . . . . . . . Scanalyzers . | . . . . . . . . . . . . . . . . . . . . . . . . . . . . . . . Garrison Access 1 | . . . . . . . . . . . . . . . . . . . . . . . . . . . . . . 1 Watchers 1 | . . . . . . . . . . . . . . . . . . . . . . . . . . . . . . 1 Data Cores Recovered . | . . . . . . . . . . . . . . . . . . . . . . . . . . . . . . . Used . | . . . . . . . . . . . . . . . . . . . . . . . . . . . . . . . Hacking Detections 74 | . 7 . 5 . . . 7 15 . . . . 10 . . . . 8 . 1 . . 4 4 1 . 2 3 . 7 Full Trace Events 9 | . 1 . . . . . 2 . . . . . 1 . . . . 1 . . . . . . . . . 1 . 3 Feedback Events 2 | . . . . . . . 1 . . . . . . . . . . . . . . . . . . . . 1 . . Corruption 1 | . . . . . . . 1 . . . . . . . . . . . . . . . . . . . . . . . Hackware Fried 1 | . . . . . . . . . . . . . . . . . . . . . . . . . . . . 1 . . Feedback Blocked . | . . . . . . . . . . . . . . . . . . . . . . . . . . . . . . . Robot Schematics Acquired 7 | . . . . . . . . . . . 6 . 1 . . . . . . . . . . . . . . . . . Robots Built . | . . . . . . . . . . . . . . . . . . . . . . . . . . . . . . . Matter . | . . . . . . . . . . . . . . . . . . . . . . . . . . . . . . . Time . | . . . . . . . . . . . . . . . . . . . . . . . . . . . . . . . Total Robot Build Rating . | . . . . . . . . . . . . . . . . . . . . . . . . . . . . . . . Part Schematics Acquired 32 | . . . 3 . . . 3 6 . . 7 . 4 . . . . 5 . . . . 3 1 . . . . . . Parts Built 12 | . . . . . . . . 6 . . . . 1 . . . . 1 . . . . 4 . . . . . . . Matter 1962 | . . . . . . . . 584 . . . . 213 . . . . 371 . . . . 794 . . . . . . . Time 764 | . . . . . . . . 144 . . . . 76 . . . . 132 . . . . 412 . . . . . . . Total Part Build Rating 53 | . . . . . . . . 18 . . . . 5 . . . . 6 . . . . 24 . . . . . . . Parts Repaired 3 | . 1 . 1 . . . . 1 . . . . . . . . . . . . . . . . . . . . . . Time 109 | . 26 . 32 . . . . 51 . . . . . . . . . . . . . . . . . . . . . . Parts Recycled . | . . . . . . . . . . . . . . . . . . . . . . . . . . . . . . . Recycled Matter . | . . . . . . . . . . . . . . . . . . . . . . . . . . . . . . . Retrieved Matter . | . . . . . . . . . . . . . . . . . . . . . . . . . . . . . . . Retrieved Components . | . . . . . . . . . . . . . . . . . . . . . . . . . . . . . . . Parts Scanalyzed 10 | . . . 4 . . . 1 . . . . . 1 . . . . 2 . . . . 2 . . . . . . . Part Schematics Acquired 8 | . . . 3 . . . 1 . . . . . 1 . . . . 1 . . . . 2 . . . . . . . Parts Damaged . | . . . . . . . . . . . . . . . . . . . . . . . . . . . . . . . Bothacking | -11 -10 -10 -9 -9 -9 -8 -8 -7 -7 -7 -7 -6 -6 -6 -6 -6 -5 -5 -5 -5 -5 -4 -4 -4 -4 -4 -4 -3 -2 -1 ------------ Run | Scr Mat Min Mat Min Exi Min Mat Fac Low Low Dat Pro Fac Low Low Zio Pro Fac Upp Upp War Pro Fac Ext Cet Arc Hub Res Res Acc Used RIF Installer . | . . . . . . . . . . . . . . . . . . . . . . . . . . . . . . . Robots Hacked . | . . . . . . . . . . . . . . . . . . . . . . . . . . . . . . . Non-combat . | . . . . . . . . . . . . . . . . . . . . . . . . . . . . . . . Combat . | . . . . . . . . . . . . . . . . . . . . . . . . . . . . . . . Robot Hacks Applied . | . . . . . . . . . . . . . . . . . . . . . . . . . . . . . . . Relay Couplers Released 4 | . . . . . . . . . . . . . . . . . . . . . . . . . . . . . 1 3 Machine Destruction 4 | . . . . . . . . . . . . . . . . . . . . . . . . . . . . . 1 3 Robots Rewired 11 | . . . . . . . . . . . . . . . . . . 1 . . . . . 10 . . . . . . Allies Hacked . | . . . . . . . . . . . . . . . . . . . . . . . . . . . . . . . Hacks Repelled . | . . . . . . . . . . . . . . . . . . . . . . . . . . . . . . . Allies | -11 -10 -10 -9 -9 -9 -8 -8 -7 -7 -7 -7 -6 -6 -6 -6 -6 -5 -5 -5 -5 -5 -4 -4 -4 -4 -4 -4 -3 -2 -1 -------- Run | Scr Mat Min Mat Min Exi Min Mat Fac Low Low Dat Pro Fac Low Low Zio Pro Fac Upp Upp War Pro Fac Ext Cet Arc Hub Res Res Acc Total Allies 21 | . . . . 1 . . . 2 . . . 1 1 . . . . 1 . . . . . 13 2 . . . . . Largest Group 8 | . . . . 1 . . . 2 . . . 1 1 . . . . 1 . . . . . 8 3 2 1 . . . Highest-Rated Group 342 | . . . . 31 . . . 36 . . . 94 10 . . . . 60 . . . . . 342 331 237 94 . . . Highest-Rated Ally 156 | . . . . 31 . . . 26 . . . 94 10 . . . . 60 . . . . . 156 156 143 94 . . . Total Orders 43 | . . . . . . . . . . . . . . . . . . . 1 . . . 6 11 1 . . . 17 7 ROAM 1 | . . . . . . . . . . . . . . . . . . . . . . . . 1 . . . . . . FOLLOW 3 | . . . . . . . . . . . . . . . . . . . . . . . 1 2 . . . . . . EXPLORE 22 | . . . . . . . . . . . . . . . . . . . 1 . . . 3 1 . . . . 12 5 RETURN 17 | . . . . . . . . . . . . . . . . . . . . . . . 2 7 1 . . . 5 2 Ally Attacks 299 | . . . . . . . . . . . . 12 . . . . . . . . . . . 207 62 10 8 . . . Total Damage 7627 | . . . . . . . . . . . . 505 . . . . . . . . . . . 4983 1496 412 231 . . . Kills 51 | . . . . . . . . . . . . 2 . . . . . . . . . . . 36 12 1 . . . . Allies Corrupted . | . . . . . . . . . . . . . . . . . . . . . . . . . . . . . . . Allies Melted . | . . . . . . . . . . . . . . . . . . . . . . . . . . . . . . . Intel | -11 -10 -10 -9 -9 -9 -8 -8 -7 -7 -7 -7 -6 -6 -6 -6 -6 -5 -5 -5 -5 -5 -4 -4 -4 -4 -4 -4 -3 -2 -1 ------- Run | Scr Mat Min Mat Min Exi Min Mat Fac Low Low Dat Pro Fac Low Low Zio Pro Fac Upp Upp War Pro Fac Ext Cet Arc Hub Res Res Acc Robot Analysis Total . | . . . . . . . . . . . . . . . . . . . . . . . . . . . . . . . Derelict Logs Recovered 16 | . . 1 . 1 . . . . 1 2 . 2 . 2 . 2 1 . 1 1 . 2 . . . . . . . . Drone Launches 82 | . . . . . . . . . . . . . . . . . . . 4 . . . 15 31 3 4 3 4 13 5 Drone Recoveries 65 | . . . . . . . . . . . . . . . . . . . 1 . . . 15 27 3 1 3 4 7 4 Exploration | -11 -10 -10 -9 -9 -9 -8 -8 -7 -7 -7 -7 -6 -6 -6 -6 -6 -5 -5 -5 -5 -5 -4 -4 -4 -4 -4 -4 -3 -2 -1 ------------- Run | Scr Mat Min Mat Min Exi Min Mat Fac Low Low Dat Pro Fac Low Low Zio Pro Fac Upp Upp War Pro Fac Ext Cet Arc Hub Res Res Acc Turns Passed 18506 | 89 993 988 1413 1004 853 853 1257 1944 82 252 25 254 447 254 128 266 105 759 138 405 608 238 429 1442 400 128 767 590 1023 372 Spaces Moved 19792 | 47 498 529 546 482 424 394 526 2266 237 634 77 636 939 687 320 795 302 1275 298 1007 1172 310 513 1017 166 47 280 905 1874 589 Core 10 | 7 . . . . . . . . . . . . . . . . . . . . . . . . . . . 1 2 . Treads 4254 | 40 498 529 546 482 424 394 526 187 . . . . . . . . . . . . . . . 136 166 47 279 . . . Legs . | . . . . . . . . . . . . . . . . . . . . . . . . . . . . . . . Wheels 304 | . . . . . . . . 304 . . . . . . . . . . . . . . . . . . . . . . Hover 4456 | . . . . . . . . 219 . . . . . . . . . . . . 510 310 513 881 . . 1 519 914 589 Flight 10768 | . . . . . . . . 1556 237 634 77 636 939 687 320 795 302 1275 298 1007 662 . . . . . . 385 958 . Fastest Speed 29 | 50 160 160 180 200 200 200 200 32 32 32 32 32 32 32 32 32 32 29 32 32 32 46 48 48 160 160 160 34 29 44 Average Speed 72 | 147 162 179 197 200 200 200 203 63 32 32 32 32 32 32 32 32 32 32 33 32 38 66 56 84 177 165 160 45 42 46 Slowest Speed 400 | 160 180 180 240 200 200 200 220 220 32 32 32 32 105 32 32 32 32 105 102 172 50 96 100 200 180 180 340 150 400 52 Overloaded Moves 229 | . . . . . . . . . . . . . . . . . . 228 . . . 1 . . . . . . . . Propulsion Burnouts . | . . . . . . . . . . . . . . . . . . . . . . . . . . . . . . . Robots Hopped 52 | . . . . . . . . 8 . . . . 4 5 1 . . 9 1 . 2 . . . . . . 4 18 . Cave-ins Triggered 1 | . . . . . . . . . . . . . . . . . . 1 . . . . . . . . . . . . Exploration Rate (%) 59 | 5 88 98 55 99 89 69 45 67 45 77 74 73 31 73 47 84 54 37 54 80 94 48 10 79 75 69 24 17 72 22 Regions Visited 30 Branch Regions 20 Pre-discovered Areas 8 | . . 1 . . 1 . . . 1 2 1 . . . . . 1 . . 1 . . . . . . . . . . Known Exits Taken 11 | . . . . . . . 1 1 . . . 1 1 . . . 1 1 1 . . . 1 1 . . 1 . 1 . Unknown Exits Taken 19 | 1 1 1 1 1 1 1 . . 1 1 1 . . 1 1 1 . . . 1 1 1 . . 1 1 . 1 . . Scrap Searched 28 | . . 1 . 1 . 1 . . . 3 . 3 . 2 6 4 3 . 1 2 . 1 . . . . . . . . Spaces Dug 327 | . 1 . 8 . . 10 7 28 . 3 . 12 29 11 . . . 106 5 1 . . . 10 . . 2 29 56 9 Terrain Destroyed 692 | . 36 . 25 6 . 10 9 28 . 22 . 20 29 22 . . . 173 5 10 . 2 . 20 2 6 67 30 98 72 Melee 128 | . 1 . . . . . 7 28 . 3 . . 29 2 . . . 39 . . . . . . . . 2 7 1 9 Projectile 100 | . . . . . . . . . . . . . . . . . . . . 1 . 2 . 20 2 6 65 1 2 1 AOE 464 | . 35 . 25 6 . 10 2 . . 19 . 20 . 20 . . . 134 5 9 . . . . . . . 22 95 62 Terrain Rammed . | . . . . . . . . . . . . . . . . . . . . . . . . . . . . . . . Walls Destroyed . | . . . . . . . . . . . . . . . . . . . . . . . . . . . . . . . Machines Disabled . | . . . . . . . . . . . . . . . . . . . . . . . . . . . . . . . Actions | -11 -10 -10 -9 -9 -9 -8 -8 -7 -7 -7 -7 -6 -6 -6 -6 -6 -5 -5 -5 -5 -5 -4 -4 -4 -4 -4 -4 -3 -2 -1 --------- Run | Scr Mat Min Mat Min Exi Min Mat Fac Low Low Dat Pro Fac Low Low Zio Pro Fac Upp Upp War Pro Fac Ext Cet Arc Hub Res Res Acc Total 22814 | 61 615 556 782 508 430 447 645 2697 240 671 76 683 1034 703 338 805 309 1562 325 1063 1331 330 652 1516 228 68 422 1025 2048 644 Wait 1446 | . 35 4 98 9 . 40 32 289 3 22 . 46 50 6 11 2 2 220 14 20 116 4 69 245 9 3 9 35 40 13 Move 19663 | 46 497 528 545 481 423 393 525 2251 236 633 76 635 930 677 317 794 301 1257 295 1006 1168 309 512 1016 165 46 279 896 1838 588 Hop 46 | . . . . . . . . 6 . . . . 4 4 1 . . 8 1 . 1 . . . . . . 4 17 . Pick Up 157 | 7 17 7 15 2 5 . 13 17 . 1 . . 4 . 2 2 2 4 . 2 3 1 9 17 6 . 7 7 5 2 Fast Attach 182 | 7 2 . 11 . . . 3 12 . . . . 5 . 2 1 1 4 2 1 17 1 8 6 6 1 15 12 62 3 Attach 98 | . . . 3 . . . 3 14 . 1 . . 5 1 1 . . 5 1 8 1 1 2 16 3 . 8 11 11 3 Detach 52 | . . . 1 . . . . 1 . 1 . . 2 2 . . . 2 2 6 4 2 2 11 1 . . 7 8 . Swap 116 | . 6 5 22 2 1 2 13 11 . 4 . . 1 . . 3 1 2 . . 2 2 1 16 2 3 5 3 9 . Drop 239 | . 17 2 21 2 1 . 12 45 . 1 . . 3 . 1 3 2 6 1 1 19 2 12 29 7 1 4 9 35 3 Fire 488 | 1 40 10 66 12 . 12 31 11 . 5 . 2 . 2 . . . . 9 19 . 8 . 80 29 14 88 14 17 18 Melee 194 | . 1 . . . . . 13 40 1 3 . . 30 7 3 . . 47 . . . . . 2 . . 7 23 3 14 Ram 1 | . . . . . . . . . . . . . . 1 . . . . . . . . . . . . . . . . Kick . | . . . . . . . . . . . . . . . . . . . . . . . . . . . . . . . Crush . | . . . . . . . . . . . . . . . . . . . . . . . . . . . . . . . Escape Stasis 39 | . . . . . . . . . . . . . . . . . . . . . . . 26 13 . . . . . . Rewire 55 | . . . . . . . . . . . . . . . . . . 7 . . . . . 48 . . . . . . Trap 34 | . . . . . . . . . . . . . . 3 . . . . . . . . 11 16 . . . 4 . . Miscellaneous 4 | . . . . . . . . . . . . . . . . . . . . . . . . 1 . . . . 3 . Route ------- -11/Scrapyard -10/Materials (discovered 5 exits: *Mat x3 / [*Min x2]) -10/Mines (discovered 2 exits: *Mat x2) -9/Materials (discovered 3 exits: *Mat x2 / *Min) -9/Mines (discovered 3 exits: *Mat x2 / *Exi) -9/Exiles (discovered 2 exits: [*Min x2]) -8/Mines -8/Materials (discovered 3 exits: *Fac x3) -7/Factory (discovered 5 exits: *Fac x2 / Sto / *Low x2) -7/Lower Caves -7/Lower Caves (discovered 2 exits: *Fac / *Dat) -7/Data Miner -6/Proximity Caves -6/Factory (discovered 6 exits: Fac x4 / *Low x2) -6/Lower Caves -6/Lower Caves (discovered 2 exits: *Fac / [*Zio]) -6/Zion -5/Proximity Caves -5/Factory (discovered 4 exits: *Fac x2 / *Upp x2) -5/Upper Caves -5/Upper Caves (discovered 2 exits: *Fac / *War) -5/Warlord -4/Proximity Caves -4/Factory (discovered 5 exits: Upp x2 / *Ext x2 / Arm) -4/Extension (discovered 2 exits: *Res / *Cet) -4/Cetus -4/Archives (discovered 2 exits: *Hub x2) -4/Hub_04(d) (discovered 4 exits: *Res x4) -3/Research (discovered 3 exits: [*Res] / Tes x2) -2/Research (discovered 3 exits: *Acc x2 / [*Qua]) -1/Access To Epsilon Eridani History --------- Turn | Location | Event 16 | -11/Scrapyard | Discovered new exit (range 14) 90 | -11/Scrapyard | Entered Materials 203 | -10/Materials | Discovered new exit (range 5) 309 | -10/Materials | Build established: Mutant 315 | -10/Materials | Discovered new exit (range 16) 485 | -10/Materials | Repaired Lgt. Treads 657 | -10/Materials | Discovered new exit (range 3) 869 | -10/Materials | Discovered new exit (range 12) 933 | -10/Materials | Discovered new exit (range 16) 1083 | -10/Materials | Entered Mines 1112 | -10/Mines | Joined a pair of Derelicts in attacking an 0b10 outpost 1139 | -10/Mines | Learned location of Storage (-7) 1301 | -10/Mines | Discovered new exit (range 15) 1499 | -10/Mines | Discovered new exit (range 14) 2071 | -10/Mines | Entered Materials 2071 | -9/Materials | Evolved 2 slots: Utility x2 2681 | -9/Materials | Build established: Scavenger-Mutant 2687 | -9/Materials | Discovered new exit (range 4) 2849 | -9/Materials | Repaired Hrd. Light Armor Plating 3052 | -9/Materials | Discovered new exit (range 16) 3402 | -9/Materials | Discovered new exit (range 15) 3484 | -9/Materials | Entered Mines 3519 | -9/Mines | Build established: Hauler-Mutant 3526 | -9/Mines | Discovered new exit (range 4) 3731 | -9/Mines | Discovered new exit (range 15) 3771 | -9/Mines | Deemed a non-threat by the Exiles lab entrance 3771 | -9/Mines | Discovered new exit (range 5) 3866 | -9/Mines | Learned Materials terminal intel 3883 | -9/Mines | Received a Mining Laser from a helpful Derelict 3928 | -9/Mines | A weapon hastily lodged in a ceiling crevice suddenly fell to the ground 4488 | -9/Mines | Entered Exiles 4558 | -9/Exiles | Met 8R-AWN 4572 | -9/Exiles | Discovered new exit (range 14) 4648 | -9/Exiles | Met EX-HEX 4740 | -9/Exiles | Met EX-DEC 4779 | -9/Exiles | Visited The Gauntlet 4986 | -9/Exiles | Learned location of Zion (-6) 5040 | -9/Exiles | Met EX-BIN 5078 | -9/Exiles | Aligned with FarCom system 5080 | -9/Exiles | Given EX-Vault access code 5126 | -9/Exiles | Opened EX-Vault 5144 | -9/Exiles | Found Firepult 5183 | -9/Exiles | Warned to stay clear of 0b10 Research branches 5321 | -9/Exiles | Discovered new exit (range 10) 5341 | -9/Exiles | Left Exiles lab with Firepult 5341 | -9/Exiles | Entered Mines 6176 | -8/Mines | Discovered new exit (range 7) 6194 | -8/Mines | Entered Materials 6194 | -8/Materials | Evolved 2 slots: Utility x2 6195 | -8/Materials | Loaded intel: 10 terminal locations 6697 | -8/Materials | Discovered new exit (range 4) 7331 | -8/Materials | Identified exit to Factory 7451 | -8/Materials | Entered Factory 7451 | -7/Factory | Evolved 2 slots: Utility x2 7847 | -7/Factory | Repaired Hvy. Ion Engine 8200 | -7/Factory | Fabricated Adv. Weight Redist. System (x2) 8589 | -7/Factory | Fabricated Lgt. Deuterium Engine? 8830 | -7/Factory | Fabricated Hacking Suite (x1) 8867 | -7/Factory | Fabricated Hacking Suite (x1) 8867 | -7/Factory | Local fabrication network quarantined 9060 | -7/Factory | Build established: Hacker-Sprinter 9091 | -7/Factory | Discovered new exit (range 16) 9148 | -7/Factory | Discovered new exit (range 21) 9152 | -7/Factory | Identified exit to Storage 9152 | -7/Factory | Identified exit to Lower Caves 9395 | -7/Factory | Entered Lower Caves 9402 | -7/Lower Caves | Attacked by a delusional Derelict stockpiling parts 9474 | -7/Lower Caves | Discovered new exit (range 13) 9477 | -7/Lower Caves | Entered another Lower Caves area 9539 | -7/Lower Caves | Discovered new exit (range 5) 9581 | -7/Lower Caves | Learned location of Extension (-4) 9599 | -7/Lower Caves | Attracted the attention of an 0b10 outpost 9726 | -7/Lower Caves | Discovered new exit (range 7) 9729 | -7/Lower Caves | Entered Data Miner 9729 | -7/Data Miner | Discovered new exit (range 6) 9734 | -7/Data Miner | Met Data Miner 9741 | -7/Data Miner | Learned location of Section 7 (-2) 9741 | -7/Data Miner | Acquired the access code to Warlord's prototype stash 9746 | -7/Data Miner | Received God Mode back door access code from Data Miner 9754 | -7/Data Miner | Entered Proximity Caves 9922 | -6/Proximity Caves | Escorted by Enhanced Grunt 9997 | -6/Proximity Caves | Identified exit to Factory 10006 | -6/Proximity Caves | Attracted the attention of an 0b10 checkpoint 10008 | -6/Proximity Caves | Entered Factory 10008 | -6/Factory | Evolved 2 slots: Utility x2 10204 | -6/Factory | Central database locked down 10227 | -6/Factory | Fabricated Lgt. Regenerative Plating? 10406 | -6/Factory | Identified exit to Lower Caves 10406 | -6/Factory | Identified exit to Factory 10455 | -6/Factory | Entered Lower Caves 10596 | -6/Lower Caves | A Derelict revealed a hidden shortcut to a safe place 10694 | -6/Lower Caves | Learned Factory emergency access door positions 10705 | -6/Lower Caves | Discovered new exit (range 13) 10709 | -6/Lower Caves | Entered another Lower Caves area 10716 | -6/Lower Caves | Discovered exit to Factory (range 8) 10834 | -6/Lower Caves | Discovered new exit (range 6) 10837 | -6/Lower Caves | Entered Zion 10850 | -6/Zion | Given A8's code to call for help 10868 | -6/Zion | Discovered new exit (range 16) 10929 | -6/Zion | Received a visual enhancement algorithm 10964 | -6/Zion | Found Prototype Device 10965 | -6/Zion | Identified Phasing AFG 10987 | -6/Zion | Learned Factory emergency access door positions 10989 | -6/Zion | Learned Factory trap positions 11027 | -6/Zion | Rebuked by Imprinter 11103 | -6/Zion | Entered Proximity Caves 11190 | -5/Proximity Caves | Discovered exit to Factory (range 7) 11208 | -5/Proximity Caves | Entered Factory 11208 | -5/Factory | Evolved 2 slots: Utility x2 11209 | -5/Factory | Identified exit to Upper Caves 11210 | -5/Factory | Loaded intel: 87 trap records 11475 | -5/Factory | Discovered new exit (range 11) 11745 | -5/Factory | Discovered new exit (range 4) 11836 | -5/Factory | Fabricated Adv. Hacking Suite? 11854 | -5/Factory | Fabricated Adv. Hacking Suite? 11942 | -5/Factory | Crushed by falling debris 11949 | -5/Factory | Incoming investigation squad redirected 11967 | -5/Factory | Entered Upper Caves 11973 | -5/Upper Caves | Lost 3 parts (1n1u1w) 12084 | -5/Upper Caves | Identified exit to Upper Caves 12105 | -5/Upper Caves | Entered another Upper Caves area 12193 | -5/Upper Caves | System corruption reached 10% 12264 | -5/Upper Caves | Lost 3 parts (1n2u) 12330 | -5/Upper Caves | Encountered a Warlord checkpoint 12391 | -5/Upper Caves | Attracted the attention of an 0b10 checkpoint 12414 | -5/Upper Caves | Discovered new exit (range 11) 12509 | -5/Upper Caves | Discovered new exit (range 3) 12510 | -5/Upper Caves | Entered Warlord 12528 | -5/Warlord | System corruption cleaned by Quarantine Array 12535 | -5/Warlord | Discovered new exit (range 15) 12589 | -5/Warlord | Found Prototype Device 12589 | -5/Warlord | Identified Minesniffer Drone Bay 12592 | -5/Warlord | Found Minesniffer Drone Bay 12662 | -5/Warlord | Warlord's base attacked by MAIN.C 12679 | -5/Warlord | Found Prototype Energy Gun 12679 | -5/Warlord | Identified Vortex Shotgun 12730 | -5/Warlord | Met Warlord 12734 | -5/Warlord | Opened Warlord's prototype stash 12747 | -5/Warlord | Found Prototype Processor 12747 | -5/Warlord | Identified Exp. Core Analyzer 12754 | -5/Warlord | Found Exp. Targeting Computer 12764 | -5/Warlord | Found Prototype Reactor 12854 | -5/Warlord | Opened side exit 12939 | -5/Warlord | P-70 Sage assimilated allied U4-IZ7(Y) 12951 | -5/Warlord | Warlord forces counterattacked 12965 | -5/Warlord | Build established: Hacker-Mutant 13022 | -5/Warlord | Spotted B-86 Titan 13022 | -5/Warlord | Spotted Executioner 13022 | -5/Warlord | Spotted B-75 Beast 13034 | -5/Warlord | Found Prototype Ballistic Cannon 13034 | -5/Warlord | Identified Hvy. Autocannon 13083 | -5/Warlord | Spotted Executioner 13113 | -5/Warlord | Spotted Executioner 13118 | -5/Warlord | Entered Proximity Caves 13119 | -4/Proximity Caves | Learned Research emergency access door positions 13215 | -4/Proximity Caves | Spotted B-86 Titan 13240 | -4/Proximity Caves | Acquired the password to a Derelict Tinkerer's latest research 13248 | -4/Proximity Caves | Found Prototype Special Weapon 13248 | -4/Proximity Caves | Identified Molecular Deconstructor 13342 | -4/Proximity Caves | Discovered new exit (range 14) 13347 | -4/Proximity Caves | Learned 4 Research zone layouts 13356 | -4/Proximity Caves | Entered Factory 13356 | -4/Factory | Evolved 2 slots: Power x1, Propulsion x1 13629 | -4/Factory | Fabricated Combat Drone Bay (x1) 13640 | -4/Factory | Fabricated Adv. Hacking Suite? 13666 | -4/Factory | Fabricated Adv. Hacking Suite (x1) 13670 | -4/Factory | Identified exit to Upper Caves 13670 | -4/Factory | Identified exit to Extension 13670 | -4/Factory | Identified exit to Armory 13700 | -4/Factory | Identified Vortex Chain Reactor 13715 | -4/Factory | Fabricated Combat Drone Bay? 13764 | -4/Factory | Local fabrication network quarantined 13785 | -4/Factory | Entered Extension 13985 | -4/Extension | Identified exit to Cetus 14128 | -4/Extension | Rescued a captive Derelict 14452 | -4/Extension | Disrupted transfer network 14591 | -4/Extension | Spotted B-86 Titan 14610 | -4/Extension | Allies destroyed B-86 Titan 14610 | -4/Extension | Spotted B-86 Titan 14618 | -4/Extension | Allies destroyed B-86 Titan 14810 | -4/Extension | Rescued a captive Derelict 14816 | -4/Extension | Energy Cycler disabled 14817 | -4/Extension | Rescued a captive Derelict 14818 | -4/Extension | Rescued a captive Derelict 14818 | -4/Extension | Rescued a captive Derelict 14842 | -4/Extension | Rescued A7 15185 | -4/Extension | Discovered new exit (range 10) 15227 | -4/Extension | Entered Cetus 15227 | -4/Cetus | Accompanied by 3 allies (A7) 15232 | -4/Cetus | Acquired a Cetus Manufacturing Module code from A7 15248 | -4/Cetus | Spotted Cetus Guard 15248 | -4/Cetus | Spotted Cetus Guard 15256 | -4/Cetus | Spotted Cetus Guard 15257 | -4/Cetus | Destroyed Cetus Guard 15263 | -4/Cetus | Allies destroyed Cetus Guard 15263 | -4/Cetus | Spotted Cetus Guard 15266 | -4/Cetus | Destroyed Cetus Guard 15267 | -4/Cetus | Allies destroyed Cetus Guard 15353 | -4/Cetus | Lost 6 parts (2p1n3u) 15480 | -4/Cetus | Started Cetus Manufacturing Module 15495 | -4/Cetus | Escorted A7 to Cetus Mainframe 15505 | -4/Cetus | Manufactured an Enhanced Grunt 15530 | -4/Cetus | Manufactured an Enhanced Grunt 15543 | -4/Cetus | Cetus Manufacturing Module disabled 15600 | -4/Cetus | Discovered new exit (range 16) 15627 | -4/Cetus | Entered Archives 15627 | -4/Archives | Accompanied by 2 allies (A7) 15632 | -4/Archives | Received a hacking code to weaken MAIN.C 15706 | -4/Archives | Discovered new exit (range 16) 15728 | -4/Archives | Discovered new exit (range 15) 15755 | -4/Archives | Entered Hub_04(d) 15755 | -4/Hub_04(d) | Accompanied by 1 ally 15853 | -4/Hub_04(d) | Identified exit to Research 15981 | -4/Hub_04(d) | Found Prototype Device 15981 | -4/Hub_04(d) | Identified Exp. Thermal Shield 16170 | -4/Hub_04(d) | Core integrity fell below 50% 16206 | -4/Hub_04(d) | Lost 8 parts (1p1n4u2w) 16285 | -4/Hub_04(d) | Lost 4 parts (1p1u2w) 16438 | -4/Hub_04(d) | Build established: Scavenger-Mutant 16522 | -4/Hub_04(d) | Entered Research 16522 | -3/Research | Evolved 2 slots: Utility x2 16546 | -3/Research | Found Fusion Bomb Launcher 16554 | -3/Research | Identified exit to Testing 16554 | -3/Research | Imp. System Shield fried by hacking feedback 16578 | -3/Research | Incoming investigation squad redirected 16915 | -3/Research | System corruption reached 10% 16939 | -3/Research | Lost 12 parts (2p3n5u2w) 16989 | -3/Research | Spotted B-86 Titan 17045 | -3/Research | Build established: Hacker-Mutant 17107 | -3/Research | Discovered new exit (range 4) 17112 | -3/Research | Entered another Research area 17112 | -2/Research | Warlord forces began assault on 0b10 17112 | -2/Research | Evolved 2 slots: Propulsion x1, Utility x1 17144 | -2/Research | Discovered new exit (range 16) 17222 | -2/Research | Research machine network offline 17296 | -2/Research | Lost 3 parts (1n2w) 17357 | -2/Research | Found Prototype Launcher 17357 | -2/Research | Identified Ragnarok Missile Launcher 17395 | -2/Research | Borebot progress halted 17406 | -2/Research | Lost 12 parts (1p2n8u1w) 17487 | -2/Research | Found Prototype Device 17487 | -2/Research | Identified Exp. Force Field 17502 | -2/Research | Spotted B-90 Cyclops 17517 | -2/Research | Spotted B-90 Cyclops 17517 | -2/Research | Spotted N5-7Y9(H) 17554 | -2/Research | Spotted 23-10W(B) 17558 | -2/Research | Spotted Striker 17575 | -2/Research | Spotted Executioner 17575 | -2/Research | Spotted Striker 17580 | -2/Research | Core integrity fell below 50% 17621 | -2/Research | Discovered new exit (range 15) 17641 | -2/Research | Lost 8 parts (1p4n3u) 17644 | -2/Research | Spotted Striker 17659 | -2/Research | Identified exit to Access 17706 | -2/Research | Found Prototype Processor 17706 | -2/Research | Identified Spectral Analyzer 17729 | -2/Research | Met up with Warlord 17841 | -2/Research | Discovered exit to Access (range 23) 17855 | -2/Research | Found Prototype Launcher 17855 | -2/Research | Identified Hellfire Missile Launcher 17958 | -2/Research | Build established: Scavenger-Mutant 17974 | -2/Research | Found Fusion Bomb Launcher 17986 | -2/Research | Borebot progress halted 17999 | -2/Research | Found Prototype Device 17999 | -2/Research | Identified Exp. Shock Absorption System 18086 | -2/Research | Found Prototype Processor 18086 | -2/Research | Identified Exp. Melee Analysis Suite 18089 | -2/Research | Found Prototype Slashing Weapon 18089 | -2/Research | Identified Particle Cleaver 18113 | -2/Research | Borebot progress halted 18135 | -2/Research | Entered Access 18135 | -1/Access | Accompanied by 2 allies 18135 | -1/Access | Evolved 2 slots: Propulsion x1, Utility x1 18307 | -1/Access | Incoming assault squad redirected 18445 | -1/Access | Incoming investigation squad redirected 18504 | -1/Access | Discovered new exit (range 6) 18506 | -1/Access | Identified exit to Surface 18507 | *** | Escaped! Last Messages --------------- 18497_ K-01 Serf cleans the Terminal. 18498_ K-01 Serf collects debris. 18498_ R-10 Processor collects Adv. Core Analyzer. 18499_ U-05 Engineer lays Concrete. 18500_ The unstable cave ceiling collapses. 18500_ Adv. Heat Sink crushed. 18500_ U-05 Engineer lays Concrete. 18501_ K-01 Serf collects debris. 18501_ U-05 Engineer builds a Wall. 18501_ K-01 Serf cleans the Terminal. 18502_ Connecting with Terminal... >>Open Sealed Barrier opened. 18502_ ALERT: Suspicious activity at Terminal A001. Dispatching Investigation squad. 18504_ K-01 Serf cleans the Terminal. 18504_ The Access Shell folds into the floor. 18504_ EXIT=FOUND 18506_ U-05 Engineer lays Concrete. 18506_ EXIT=IDENTIFIED: SURFACE Map ----- +----------------------------------------------------+ | ?????????????????????????????????????# #????????? | | ?????????????????????????????????????# +????????? | | ?????????????????????????????????????# #????????? | | ?????????????????????????????????????# #????????? | | ?????????????????????????????????????# #????????? | | ?????????????????????????????????????# ########## | | ????????????????????????????????" ???# ## | | ???????????????????????????????? # ## | | ?????????????????????????????????? + | | ?????????????????????????????????????# # | | ?????????????????????????????????????# | | ???????????????????????############### # # | | ?????????????????? % | | ?????????????????? !! | | ?????????????????????????????#########! #% ## | | ?????????????????????????????????????# # # | | ?????????????????????????????????????# # ## # # | | ?????????????????????????????????????# # # | | ?????????????????????????????????????# # # # ## | | ?????????????????????????????###?????# # #####? | | ????????????????????########## ####### A#####????? | | ????????????????????" #????????? | | ??????????????BB????" #????????? | | ??????????????BB????" #????????? | | ????????????????????" #????????? | | ????????????????????" "@ #????????? | | ????????????????????" "" #????????? | | ????????????????????" n #????????? | | ??????????????BB????" k #????????? | | ??????????????BB????" """ """ #????????? | | ????????????????????" """T""" #????????? | | ????????????????????########## ####### #???###### | | ?????????????????????????????###?????# #???#""""" | | ?????????????????????????????????????# ##### """" | | ?????????????????????????????????????# # | | ?????????????????????????????????????# # | | ?????????????????????????????????????# + | | ???????????????????????????????####### # | | ??????????????????????????????? # | | ??????????????????????????????? # " " | | ???????????????????????????????#######g # "Y" | | ???????????????????????????????""" # # """ | | ???????????????????????????????"" # ########## | | ??????????????????????????????? # #""""""""" | | ??????????????????????????????? # # """"T""" | | ??????????????????????????????? # | | ??????????????????????????????? # | | ??????????????????????????????? # | | ??????????????????????????????? # | | ??????????????????????????????? # | +----------------------------------------------------+ Best States ------------- Heat Dissipation 118 Energy Generation 55 Energy Capacity 1700 Matter Stores 700 Matter Capacity 700 Sight Range 24 Robot Scan Range 13 Terrain Scan Range 20 Terrain Scan Density 85 Jamming Range 16 Power Amplification 40 Additional Mass Support 18 Base Temperature (-) 200 Armor Coverage 1200 Resistance: TH 15 Resistance: EX 75 Resistance: EM 20 Power Shielding 66 Utility Shielding 90 Melee Speed Boost 20 Evasion (%) 75 Targeting Accuracy 12 Melee Accuracy 12 Launcher Accuracy 80 Target Analysis 8 Core Analysis 15 Recoil Reduction 3 Salvage Targeting 4 Offensive Hacking 34 Defensive Hacking 44 Item Schematics ----------------- Hcp. Storage Unit | -9/Materials | Scanalyzed EMP Blaster | -9/Materials | Scanalyzed Arm. Wheel | -9/Materials | Scanalyzed Mni. Grenade Launcher | -8/Materials | Hacked Adv. Weight Redist. System | -8/Materials | Hacked Imp. Flight Unit | -8/Materials | Scanalyzed Lgt. Deuterium Engine | -7/Factory | Hacked Hacking Suite | -7/Factory | Hacked Mic. Nuclear Core | -7/Factory | Hacked Lgt. Armor Plating | -7/Factory | Hacked Adv. Sensor Array | -7/Factory | Hacked Adv. Signal Interpreter | -7/Factory | Hacked Combat Drone Bay | -7/Data Miner | Free Lgt. Regenerative Plating | -7/Data Miner | Free Exp. Flexi-carbon Leg | -7/Data Miner | Free Exp. Terrain Scan Processor | -7/Data Miner | Free Exp. Targeting Computer | -7/Data Miner | Free Exp. Transmission Jammer | -7/Data Miner | Free Cloaking Device | -7/Data Miner | Free Variable Charge Gun | -6/Factory | Hacked Imp. Hacking Suite | -6/Factory | Hacked Imp. System Shield | -6/Factory | Hacked Lgt. Fission Core | -6/Factory | Scanalyzed Biomechanical Wings | -5/Factory | Hacked Mic. Fission Core | -5/Factory | Hacked Adv. Hacking Suite | -5/Factory | Hacked Adv. System Shield | -5/Factory | Hacked Mak. Power Source | -5/Factory | Scanalyzed Cmb. Gravmag System | -4/Factory | Hacked Vortex Chain Reactor | -4/Factory | Scanalyzed Exp. Energy Well | -4/Factory | Scanalyzed Biometal Heavy Treads | -4/Extension | Hacked Robot Schematics ------------------ S-27 Virus | -7/Data Miner | Free G-50 Soldier | -7/Data Miner | Free G-67 Veteran | -7/Data Miner | Free H-66 Slayer | -7/Data Miner | Free P-70 Sage | -7/Data Miner | Free I-36 Angel | -7/Data Miner | Free L-41 Fighter | -6/Factory | Hacked Fabricated ------------ Adv. Weight Redist. System | x2 | -7/Factory Lgt. Deuterium Engine | x2 | -7/Factory Hacking Suite | x1 | -7/Factory Hacking Suite | x1 | -7/Factory Lgt. Regenerative Plating | x1 | -6/Factory Adv. Hacking Suite | x1 | -5/Factory Combat Drone Bay | x1 | -4/Factory Adv. Hacking Suite | x1 | -4/Factory Adv. Hacking Suite | x1 | -4/Factory Combat Drone Bay | x1 | -4/Factory Alien Tech Used ----------------- None Achievements -------------- None Challenges ------------ None Game ------ Seed NullSpectralMachine Manual? 0 Play Time 05:52:30 Cumulative 295.5 hours Start 2021.06.17 @ 20:15:29 End 2021.08.19 @ 19:00:02 Sessions 13 Manual Loads 0 Difficulty Rogue Special Mode None Game No. 112 Rogue 112 Adventurer 0 Explorer 0 Win Type 0 Total 11 Types 9/0/1/1/0/0/0/0/0 Lore% 62 Gallery% 86 Achievement% 66 Wizard Run 0 Options --------- ASCII 0 Keyboard 0 Movement Numpad Keybinds 0 Fullscreen 1 Font 18/SmallcapsGlow Map View 76x50 Tactical HUD 1 Map Filters NONE Filters NONE Steam 1 RUN: 1c6c6080-3a6b-4844-9def-1149ddfd01e0